Cogmind - Beta 16 @@@ ROGUE MODE // 2025.12.20 @ 15:17:43 Player: ConfusedWizard Result: Destroyed by S-10 Pest with Light Assault Rifle Performance ------------- Evolutions (0) 0 Regions Visited (1) 200 Robots Destroyed (5) 25 Value Destroyed (80) 80 Prototype IDs (0) 0 Alien Tech Used (0) 0 Bonus (0) 0 TOTAL SCORE: 305 Bonus ------- None Cogmind --------- Core Integrity 0/250 Matter 184/300 Energy 100/100 System Corruption 0% Temperature Cool (0) Movement Core (100) Ox1 Location -10/Materials Parts ------- > --- POWER (1) -------- (None) > --- PROPULSION (2) --- (None) > --- UTILITY (2) ------ Small Storage Unit > --- WEAPON (2) ------- (None) > --- INVENTORY (8) ---- Light Ion Engine Wheel Medium Storage Unit Light Assault Rifle Grenade Launcher Peak State ------------ > --- POWER ------------ Ion Engine > --- PROPULSION ------- Aluminum Leg Aluminum Leg > --- UTILITY ---------- Small Storage Unit Visual Processing Unit > --- WEAPON ----------- Assault Rifle Assault Rifle > --- INVENTORY -------- Light Ion Engine Wheel Medium Storage Unit Light Assault Rifle Grenade Launcher [Rating: 8] Favorites ----------- Power Ion Engine Engine Ion Engine Propulsion Aluminum Leg Leg Aluminum Leg Wheel Wheel Utility Small Storage Unit Storage Small Storage Unit Processor Visual Processing Unit Weapon Assault Rifle Ballistic Gun Assault Rifle Build | -11 -10 ------- Run | Yrd Mat Slots Evolved . | . . Power . | . . Propulsion . | . . Utility . | . . Weapon . | . . Parts Attached 9 | 8 1 Power 2 | 2 . Engine 2 | 2 . Core . | . . Reactor . | . . Propulsion 3 | 3 . Treads . | . . Leg 2 | 2 . Wheel 1 | 1 . Hover . | . . Flight . | . . Utility 2 | 1 1 Device . | . . Storage 1 | 1 . Processor 1 | . 1 Hackware . | . . Protection . | . . Artifact . | . . Weapon 2 | 2 . Energy Gun . | . . Energy Cannon . | . . Ballistic Gun 2 | 2 . Ballistic Cannon . | . . Launcher . | . . Special Weapon . | . . Impact Weapon . | . . Slashing Weapon . | . . Piercing Weapon . | . . Special Melee Weapon . | . . Unidentified Prototypes . | . . Parts Lost . | . . Power . | . . Propulsion . | . . Utility . | . . Weapon . | . . Highest Loss Streak . | . . To Critical Strikes . | . . Average Backups 4 | 2 4 Power . | . 1 Propulsion . | . 1 Utility . | . . Weapon 1 | 1 1 Tool/Special . | . . Unused Backups 4 | . 4 Power . | . . Propulsion 1 | . 1 Utility 1 | . 1 Weapon 2 | . 2 Tool/Special . | . . Average Slot Usage (%) 62 | . 62 Engine 9 | . 9 Leg 18 | . 18 Storage 14 | . 14 Processor 2 | . 2 Ballistic Gun 18 | . 18 Peak Build Rating 8 | 6 8 Average Rating 4 | 3 4 On Entrance 3 | . 6 Avg Prop Armor Cover (%) 27 | 27 . Naked Turns . | . . Heaviest Build 14 | 14 14 Greatest Support 20 | 20 20 Greatest Overweight (x) 1 | . 1 Average Overweight (x) . | . . Largest Inventory Capacity 8 | 8 8 Average Capacity 7 | 6 8 Most Carried 6 | 5 6 Average Carried 4 | 3 4 Final Capacity 8 | 8 8 Final Carried 5 | 3 5 Class Distribution -------------------- 100% | Mutant Dominant Class ---------------- Mutant | -10/Materials Resources | -11 -10 ----------- Run | Yrd Mat Matter Collected 253 | 142 111 Remotely . | . . Salvage Created 111 | . 111 Parts 7 | . 7 Haulers Intercepted . | . . Recyclers Shooed 1 | . 1 Parts Field Recycled . | . . Retrieved Matter . | . . Parts Self-Destructed . | . . Prevented . | . . Parts Restored . | . . Kills | -11 -10 ------- Run | Yrd Mat Combat Hostiles Destroyed 4 | . 4 Guns 4 | . 4 Classes Destroyed 3 | . 3 Watcher 1 | . 1 Swarmer 3 | . 3 Grunt 1 | . 1 Best Kill Streak 2 | . 2 Combat Bots Only 2 | . 2 Max Kills in Single Turn 1 | . 1 Gunslinging . | . . Exploded . | . . Melee . | . . Uniques/NPCs Destroyed . | . . Combat | -11 -10 -------- Run | Yrd Mat Hostile Shots Fired 59 | . 59 Missed 15 | . 15 Hits 44 | . 44 Projectile 44 | . 44 Critical Strikes 1 | . 1 Damage Taken 386 | . 386 Core 257 | . 257 Absorbed by Shields . | . . Core Remaining (%) 100 | 100 . Volleys Fired 13 | . 13 Largest 2 | . 2 Hottest 40 | . 40 Shots Fired 26 | . 26 Gun 26 | . 26 Cannon . | . . Launcher . | . . Special . | . . Kinetic 26 | . 26 Thermal . | . . Explosive . | . . Electromagnetic . | . . Robot Hit Streak 6 | . 6 Robot Miss Streak 5 | . 5 Penetration Max . | . . Secondary Targets . | . . Shots Hit Robots 13 | . 13 Core Hits 7 | . 7 Critical Kills . | . . Critical Parts Destroyed . | . . Critical Strikes . | . . Melee Attacks . | . . Impact . | . . Slashing . | . . Piercing . | . . Sneak Attacks . | . . Combat Hostiles . | . . Follow-up Attacks . | . . Damage Inflicted 185 | . 185 Guns 167 | . 167 Cannons . | . . Explosions . | . . Melee . | . . Ramming 18 | . 18 Kinetic 167 | . 167 Thermal . | . . Explosive . | . . Electromagnetic . | . . Impact . | . . Slashing . | . . Piercing . | . . Highest Corruption . | . . Average Corruption . | . . Corruption Purged . | . . Corruption Blocked . | . . Overload Shots . | . . Overflow Damage . | . . Projectiles . | . . Explosions . | . . Melee . | . . Knockbacks . | . . Impact . | . . Kinetic . | . . Secondary . | . . Self-Inflicted Damage 5 | . 5 Shots . | . . Rammed 1 | . 1 Targets Rammed 3 | . 3 Kicked 2 | . 2 Crushed . | . . Highest Temperature . | . . Average Temperature . | . . Received Heat Transfer 48 | . 48 Siege Activations . | . . Martial Activations . | . . Shielding Activations . | . . Robots Disrupted . | . . Combat Hostiles . | . . Robots Corrupted . | . . Combat Hostiles . | . . Parts Fried . | . . Impact Corruptions . | . . Robots Melted . | . . Combat Hostiles . | . . Parts Melted . | . . Heat Transferred . | . . Parts Sabotaged . | . . Parts Stolen . | . . Parts Stripped . | . . Power Chain Reactions . | . . Alert | -11 -10 ------- Run | Yrd Mat Maximum Alert Level . | . . Low Security (%) 100 | 100 100 Level 1 . | . . Level 2 . | . . Level 3 . | . . Level 4 . | . . Level 5 . | . . High Security . | . . Max Security . | . . Peak Influence 65 | . 65 Initial . | . . Average 14 | . 18 Influence Increases 123 | . 123 Destroy 0b10 Robot/C 80 | . 80 Destroy 0b10 Robot/NC 5 | . 5 Destroy Leader 22 | . 22 Destroy Structure 1 | . 1 Lose Combat Pursuer 15 | . 15 Influence Decreases 123 | . 123 Time Decay 123 | . 123 Squads Dispatched 1 | . 1 Investigation . | . . Extermination . | . . Reinforcement 1 | . 1 Assault . | . . Garrison . | . . Intercept . | . . Searches Triggered . | . . Construction Impeded . | . . Haulers Reinforced . | . . Active Scanning Responses . | . . Cargo Convoy Interrupts . | . . Stealth | -11 -10 --------- Run | Yrd Mat Distress Signals 1 | . 1 Communications Jammed . | . . Distress Signals . | . . Times Spotted 12 | . 12 Peak Tracking Total 5 | . 5 Tactical Retreats 1 | . 1 Traps | -11 -10 ------- Run | Yrd Mat Traps Triggered 4 | . 4 Indirectly . | . . Trap Hack Attempts . | . . Triggered . | . . Disarmed . | . . Reprogrammed . | . . Reused . | . . Traps Extracted . | . . Installed . | . . Triggered . | . . Machines | -11 -10 ---------- Run | Yrd Mat Machines Disabled . | . . Max in Single Turn . | . . Machines Repaired . | . . Machines Dismantled . | . . Machines Sabotaged . | . . Overloaded Fab Kills . | . . Hacking | -11 -10 --------- Run | Yrd Mat Machines Accessed 4 | . 4 Terminals 3 | . 3 Fabricators . | . . Repair Stations . | . . Recycling Units 1 | . 1 Scanalyzers . | . . Garrison Access . | . . Total Hacks 6 | . 6 Successful 4 | . 4 Failed 2 | . 2 Catastrophic . | . . Database Lockouts . | . . Manual 5 | . 5 Terminals 4 | . 4 Fabricators . | . . Repair Stations . | . . Recycling Units 2 | . 2 Scanalyzers . | . . Garrison Access . | . . Terminal Hacks . | . . Fabricator Hacks . | . . Repair Station Hacks . | . . Recycling Unit Hacks 1 | . 1 Report Inventory 1 | . 1 Scanalyzer . | . . Garrison Access Hacks . | . . Unauthorized Hacks 3 | . 3 Terminals 3 | . 3 Botnet 3 | . 3 Fabricators . | . . Repair Stations . | . . Recycling Units . | . . Scanalyzers . | . . Garrison Access . | . . Data Cores Recovered . | . . Used . | . . Hacking Detections 1 | . 1 Full Trace Events . | . . Feedback Events . | . . Feedback Blocked . | . . Robot Schematics Acquired . | . . Robots Built . | . . Authchips . | . . Time . | . . Total Robot Build Rating . | . . Part Schematics Acquired . | . . Parts Built . | . . Authchips . | . . Time . | . . Total Part Build Rating . | . . Part Studies Acquired . | . . Parts Repaired . | . . Time . | . . Parts Recycled . | . . Recycled Matter . | . . Retrieved Matter . | . . Retrieved Components . | . . Parts Scanalyzed . | . . Part Schematics Acquired . | . . Parts Damaged . | . . Bothacking | -11 -10 ------------ Run | Yrd Mat Used RIF Installer . | . . Robots Hacked . | . . Non-combat . | . . Combat . | . . Robot Hacks Applied . | . . Relay Couplers Released . | . . Fabnet Peak Effective % . | . . Robots Rewired . | . . Allies Hacked . | . . Hacks Repelled . | . . Allies | -11 -10 -------- Run | Yrd Mat Total Allies . | . . Largest Group . | . . Highest-Rated Group . | . . Highest-Rated Ally . | . . Total Orders . | . . Ally Attacks . | . . Total Damage . | . . Kills . | . . Allies Corrupted . | . . Allies Melted . | . . Intel | -11 -10 ------- Run | Yrd Mat Active Infowar (turns) 88 | . 88 Optics 88 | . 88 Robot Analysis Total . | . . Derelict Logs Recovered . | . . Drone Launches . | . . Drone Recoveries . | . . Exploration | -11 -10 ------------- Run | Yrd Mat Turns Passed 568 | 121 447 Spaces Moved 455 | 101 354 Core 190 | 32 158 Treads . | . . Legs 265 | 69 196 Wheels . | . . Hover . | . . Flight . | . . Fastest Speed 50 | 50 100 Average Speed 108 | 97 111 Slowest Speed 120 | 120 120 Overloaded Moves . | . . Propulsion Burnouts . | . . Robots Hopped . | . . Potential Cave-ins . | . . Cave-ins Triggered . | . . Exploration Rate (%) 30 | 4 56 Regions Visited 1 Branch Regions . Pre-discovered Areas . | . . Known Exits Taken . | . . Unknown Exits Taken 1 | 1 . Scrap Searched . | . . Spaces Dug . | . . Terrain Destroyed . | . . Melee . | . . Projectile . | . . AOE . | . . Terrain Rammed . | . . Walls Destroyed . | . . Machines Disabled . | . . Actions | -11 -10 --------- Run | Yrd Mat Total 504 | 123 381 Wait 9 | 4 5 Move 454 | 100 354 Hop . | . . Pick Up 13 | 10 3 Fast Attach . | . . Attach 9 | 7 2 Detach 1 | . 1 Swap 1 | 1 . Drop 1 | 1 . Fire 13 | . 13 Melee . | . . Ram 1 | . 1 Kick 2 | . 2 Crush . | . . Escape Stasis . | . . Rewire . | . . Trap . | . . Miscellaneous . | . . Route ------- -11/Scrapyard -10/Materials (discovered 2 exits: [*Mat] / [*Min]) History --------- Turn | Location | Event 9 | -11/Scrapyard | Discovered new exit (range 16) 122 | -11/Scrapyard | Entered Materials 305 | -10/Materials | Build established: Mutant 412 | -10/Materials | Discovered new exit (range 4) 468 | -10/Materials | Discovered new exit (range 8) 559 | -10/Materials | Core integrity fell below 50% 566 | -10/Materials | Core integrity fell below 20% 569 | -10/Materials | Destroyed by S-10 Pest with Light Assault Rifle Last Messages --------------- Core Shielding (50%) Med. Laser (44%) Triggered Blade Trap. Massive razor-sharp blades shoot up from within the floor. Aluminum Leg severed. Ion Engine severed. Triggered Blade Trap. Massive razor-sharp blades shoot up from within the floor. Aluminum Leg severed. Assault Rifle severed. EXIT=FOUND Triggered Blade Trap. Massive razor-sharp blades shoot up from within the floor. Visual Processing Unit severed. Triggered Blade Trap. Massive razor-sharp blades shoot up from within the floor. K-01 Serf collects debris. EXIT=FOUND K-01 Serf cleans the Terminal. Slammed into S-10 Pest. Map ----- +----------------------------------------------------+ | ??????????????????????# """ #?????????????????? | | ###???????????#####???# #?????????????????? | | #???????????# #???# #?????????????????? | | #???????????# < #???# #?????????????????? | | #######?????# #???#####+####?????????????????? | | # ####### ####### #??????????????????? | | # = #??????????????????? | | + ^*=[ " #??????????????????? | | # [^ #??????????????????? | | # ################# #??????????????????? | | ## ########## """ ## ###??????????????????? | | #### # # "Y" ## #????????????????????? | | ???# # + ## ##???????????????????? | | ???# + # # #######+## !???????? | | ???# # # # T ???????? | | ???# # # + T ??????? | | #### # # # ?????? | | # ] # """ # """ """ # ?????? | | # # """ # """ """ #??????????? | | "T" # # """ # """ """ ?#??????????? | | ##""T""### """ # ????????????? | | ##"""""#?# """ # ????????????? | | ########?# # ???????????? | | #????????######## ###+##### ???????????? | | #### ################# s# !#?????????????? | | ???# s @ + #?????????????? | | ???# k s # """ #?????????????? | | ???# # """ #?????????????? | | ???# ###################### """ #?????????????? | | ???# #????????????????????# #?????????????? | | #### #????????????????????#/##+###?????????????? | | T # #????????????????????# #???????????????? | | # #????????????????????# #???????????????? | | # #????????????????????# #???????????????? | | "" # +???????????????????? #???????????????? | | "" # #????????????????????# #???????????????? | | "" # #????????????????????# #???????????????? | | # #????????????????????# #???????????????? | | #### #????????????????????#### ????????????????? | | #???????????????????????? ????????????????? | | ### #???????????????????????? ????????????????? | | ???????????????????????????????? ????????????????? | | ???????????????????????????????? ????????????????? | | ???????????????????????????????? ????????????????? | | ???????????????????????????????? ????????????????? | | ?????????????????????????????????????????????????? | | ?????????????????????????????????????????????????? | | ?????????????????????????????????????????????????? | | ?????????????????????????????????????????????????? | | ?????????????????????????????????????????????????? | +----------------------------------------------------+ Best States ------------- Heat Dissipation 25 Energy Generation 10 Energy Capacity 250 Matter Stores 205 Matter Capacity 300 Sight Range 18 Terrain Scan Density 10 Evasion (%) 55 Item Schematics ----------------- None Robot Schematics ------------------ None Fabricated ------------ Nothing Repaired ---------- Nothing Studied --------- None Alien Tech Used ----------------- None Achievements -------------- DATA ERROR: Steam Global Achievement% For Emergencies Only Spot Them First Challenges ------------ None Game ------ Seed SpikedBeamShearcannon Manual? 0 Play Time 00:06:48 Cumulative 3.4 hours Start 2025.12.20 @ 15:10:18 End 2025.12.20 @ 15:17:43 Sessions 1 Manual Loads 0 Difficulty Rogue Special Mode None Game No. 17 Rogue 17 Adventurer 0 Explorer 0 Win Type - Total 0 Types 0/0/0/0/0/0/0/0/0/0 Lore% 7 Gallery% 7 Achievement% 5 Wizard Run 0 Options --------- Layout 1 ASCII 0 Keyboard 0 Movement Arrows Keybinds 0 Fullscreen 2 Font 24/Smallcaps Map View 130x35 Zoom Use 0% Tactical HUD 0 Map Filters NONE Filters NONE Steam 1 RUN: 473a8fb1-30cc-4a6a-97fa-3d0d333339b6